Workbook

Sheet NOTICE
B11: NOTE: This file is designed to support the use of SCTE 225 2020. The SCTE does not provide any warranty of accuracy or support with the use of this tool.

Sheet Purpose

Sheet Worksheet
A1: Job Description
A3: Location (City, State)
A4: Participants
A5: 1. Max Load Required (lbs.) (Enter total weight of material, tools and equipment in vehicle.)
A6: 2. Towing Required (Yes/No)
A7: 3. Max # of Passengers seats
A8: 4. Storage Space Required • Small – Trunk of Car • Medium – SUV Trunk • Large – Van or Truck Bed
A9: 5. Ladder Rack Required (Yes/No)
A10: 6. Up-Fit Type Required • Tech Van Up-fit – Vehicle may serve as Spare Tech Van • Utility – Any other Upfit needed • No Up-fit
A11: 7. Average Miles Traveled per Day
A12: 8. % Urban Driving Daily
A13: 9. Total # of Employees in Job Type
A14: 10. Alternative Fuel Preference (Yes/No, If Yes, select: CNG, LPG or Electric)
A15: Additional Comments (Include other pertinent criteria such as, 4WD, Towing Capacity, Extreme Vehicle Loads, etc.)

Sheet VSM
A1: Vehicle Selection Matrix | H1: Job Description:
A2: Vehicle List | B2: Max Load (lbs.) | C2: Towing Required | D2: Storage Space Required | E2: Upfit Type Required | F2: Max # of Passengers | G2: Average Miles Traveled Per Day | H2: Ladder Rack Required | I2: % City Driving | J2: Make & Model
B3: 1000 | C3: No | D3: Large | E3: Tech Van | F3: 1 | G3: 1000 | H3: Yes | I3: 10 | J3: =IF(C3="Yes",INDEX(Table14916[Make Model],MATCH(MIN(ABS(Table14916[Max Payload]-VSM!B3)),ABS(Table14916[Max Payload]-VSM!B3),0)),IF(E3="Tech Van",INDEX(Table14914[Make Model],MATCH(MIN(ABS(Table14914[Max Payload]-VSM!B3)),ABS(Table14914[Max Payload]-VSM!B3),0)),IF(E3="Utility",INDEX(Table14915[Make Model],MATCH(MIN(ABS(Table14915[Max Payload]-VSM!B3)),ABS(Table14915[Max Payload]-VSM!B3),0)),IF(D3="Large",INDEX(Table14911[Make Model],MATCH(MIN(ABS(Table14911[Max Payload]-B3)),ABS(Table14911[Max Payload]-B3),0)),IF(D3="Medium",INDEX(Table1493[Make Model],MATCH(MIN(ABS(Table1493[Max Payload]-B3)),ABS(Table1493[Max Payload]-B3),0)),IF(D3="Small",INDEX(Table149[Make Model],MATCH(MIN(ABS(Table149[Max Payload]-VSM!B3)),ABS(Table149[Max Payload]-VSM!B3),0)),IF(F3>1,INDEX(Table14917[Make Model],MATCH(MIN(ABS(Table14917[Max Payload]-B3)),ABS(Table14917[Max Payload]-B3),0))))))))) -> GM Express 2500
A4: Priory Weight: | B4: 1 | C4: 2 | D4: 3 | E4: 4 | F4: 6 | G4: 8 | H4: 5 | I4: 7
A5: Interim Calculation | B5: =INDEX(Table149[Make Model],MATCH(MIN(ABS(Table149[Max Payload]-VSM!B3)),ABS(Table149[Max Payload]-VSM!B3),0)) -> Ford Edge SE | C5: =IF(C3="Yes",INDEX(Table14916[Make Model],MATCH(MIN(ABS(Table14916[Max Payload]-VSM!B3)),ABS(Table14916[Max Payload]-VSM!B3),0)),INDEX(Table149[Make Model],MATCH(MIN(ABS(Table149[Max Payload]-VSM!B3)),ABS(Table149[Max Payload]-VSM!B3),0))) -> Ford Edge SE | D5: =IF(C3="Yes",INDEX(Table14916[Make Model],MATCH(MIN(ABS(Table14916[Max Payload]-VSM!B3)),ABS(Table14916[Max Payload]-VSM!B3),0)),IF(D3="Large",INDEX(Table14911[Make Model],MATCH(MIN(ABS(Table14911[Max Payload]-B3)),ABS(Table14911[Max Payload]-B3),0)),IF(D3="Medium",INDEX(Table1493[Make Model],MATCH(MIN(ABS(Table1493[Max Payload]-B3)),ABS(Table1493[Max Payload]-B3),0)),IF(D3="Small",INDEX(Table149[Make Model],MATCH(MIN(ABS(Table149[Max Payload]-VSM!B3)),ABS(Table149[Max Payload]-VSM!B3),0)))))) -> GM Express 2500 | E5: =IF(C3="Yes",INDEX(Table14916[Make Model],MATCH(MIN(ABS(Table14916[Max Payload]-VSM!B3)),ABS(Table14916[Max Payload]-VSM!B3),0)),IF(E3="Tech Van",INDEX(Table14914[Make Model],MATCH(MIN(ABS(Table14914[Max Payload]-VSM!B3)),ABS(Table14914[Max Payload]-VSM!B3),0)),IF(E3="Utility",INDEX(Table14915[Make Model],MATCH(MIN(ABS(Table14915[Max Payload]-VSM!B3)),ABS(Table14915[Max Payload]-VSM!B3),0)),IF(D3="Large",INDEX(Table14911[Make Model],MATCH(MIN(ABS(Table14911[Max Payload]-B3)),ABS(Table14911[Max Payload]-B3),0)),IF(D3="Medium",INDEX(Table1493[Make Model],MATCH(MIN(ABS(Table1493[Max Payload]-B3)),ABS(Table1493[Max Payload]-B3),0)),IF(D3="Small",INDEX(Table149[Make Model],MATCH(MIN(ABS(Table149[Max Payload]-VSM!B3)),ABS(Table149[Max Payload]-VSM!B3),0)))))))) -> GM Express 2500 | F5: =IF(F3>1,INDEX(Table14917[Make Model],MATCH(MIN(ABS(Table14917[Max Payload]-B3)),ABS(Table14917[Max Payload]-B3),0)),IF(C3="Yes",INDEX(Table14916[Make Model],MATCH(MIN(ABS(Table14916[Max Payload]-VSM!B3)),ABS(Table14916[Max Payload]-VSM!B3),0)),IF(E3="Tech Van",INDEX(Table14914[Make Model],MATCH(MIN(ABS(Table14914[Max Payload]-VSM!B3)),ABS(Table14914[Max Payload]-VSM!B3),0)),IF(E3="Utility",INDEX(Table14915[Make Model],MATCH(MIN(ABS(Table14915[Max Payload]-VSM!B3)),ABS(Table14915[Max Payload]-VSM!B3),0)),IF(D3="Large",INDEX(Table14911[Make Model],MATCH(MIN(ABS(Table14911[Max Payload]-B3)),ABS(Table14911[Max Payload]-B3),0)),IF(D3="Medium",INDEX(Table1493[Make Model],MATCH(MIN(ABS(Table1493[Max Payload]-B3)),ABS(Table1493[Max Payload]-B3),0)),IF(D3="Small",INDEX(Table149[Make Model],MATCH(MIN(ABS(Table149[Max Payload]-VSM!B3)),ABS(Table149[Max Payload]-VSM!B3),0))))))))) -> GM Express 2500
B6: =IF(B3>1183,"SUV max haul weight passed","") ->  | C6: =IF(C3="Yes","Towing requires pickup","") ->  | F6: =IF(F3>1,"Passenger seats excceded for vans","") ->  | I6: =IF(I3>=60,"Smaller vehicle suggested if possible","") -> 
B7: =IF(B3>1710,"Pickup max haul weight passed","") -> 
A8: Default Values: | B8: 100 | C8: No | D8: Small | E8: No Upfit | F8: 0 | G8: 10 | H8: No | I8: 10

Sheet Vehicle Cost
A1: Vehicle Cost
A2: Job Description | B2: Type | C2: Model (2015 Year) | D2: Base Cost | E2: Van Upfit Cost | F2: Non Van Upfit Cost | G2: Alt Fuel | H2: Alt Fuel Cost | I2: Total Vehicle Cost | J2: Number of Mgrs/Sups | K2: Total Cost | L2: Alt Fuel State Recommendation
A3: Supv, NetMaint | B3: Van | C3: Express 2500 (AFV Capable) | D3: =IFERROR(VLOOKUP(C3,Lists!$I$8:$J$29,2,FALSE),0) -> 31205 | E3: =IF(B3="Van",6800,0) -> 6800 | F3: =IF(B3="Van",0,2060) -> 0 | G3: None | H3: =IFERROR(VLOOKUP(G3,Lists!$F$4:$G$9,2,FALSE),0) -> 0 | I3: =IFERROR(IF(D3+E3+F3+H3>20000,D3+E3+F3+H3,0),0) -> 38005 | K3: =IFERROR(I3*J3,"") -> 0 | L3: =IF(G3="CNG Dedicated", "Only in CA and UT", "No Specific Recommendation") -> No Specific Recommendation
A4: Supv, NetMaint | B4: Pickup | C4: Silverado Crew Cab 4WD (AFV Capable) | D4: =IFERROR(VLOOKUP(C4,Lists!$I$8:$J$29,2,FALSE),0) -> 40460 | E4: =IF(B4="Van",6800,0) -> 0 | F4: 500 | G4: CNG Bi-Fuel | H4: =IFERROR(VLOOKUP(G4,Lists!$F$4:$G$9,2,FALSE),0) -> 10000 | I4: =IFERROR(IF(D4+E4+F4+H4>20000,D4+E4+F4+H4,0),0) -> 50960 | J4: 50 | K4: =IFERROR(I4*J4,"") -> 2548000 | L4: =IF(G4="CNG Dedicated", "Only in CA and UT", "No Specific Recommendation") -> No Specific Recommendation
A5: Mgr, NetMaint | B5: Pickup | C5: F-150 SuperCrew 4WD (AFV Capable) | D5: =IFERROR(VLOOKUP(C5,Lists!$I$8:$J$29,2,FALSE),0) -> 37585 | E5: =IF(B5="Van",6800,0) -> 0 | F5: 0 | G5: None | H5: =IFERROR(VLOOKUP(G5,Lists!$F$4:$G$9,2,FALSE),0) -> 0 | I5: =IFERROR(IF(D5+E5+F5+H5>20000,D5+E5+F5+H5,0),0) -> 37585 | K5: =IFERROR(I5*J5,"") -> 0 | L5: =IF(G5="CNG Dedicated", "Only in CA and UT", "No Specific Recommendation") -> No Specific Recommendation
A6: Mgr, Inst | B6: SUV | C6: Edge SE AWD | D6: =IFERROR(VLOOKUP(C6,Lists!$I$8:$J$29,2,FALSE),0) -> 29595 | E6: =IF(B6="Van",6800,0) -> 0 | F6: 0 | G6: None | H6: =IFERROR(VLOOKUP(G6,Lists!$F$4:$G$9,2,FALSE),0) -> 0 | I6: =IFERROR(IF(D6+E6+F6+H6>20000,D6+E6+F6+H6,0),0) -> 29595 | K6: =IFERROR(I6*J6,"") -> 0 | L6: =IF(G6="CNG Dedicated", "Only in CA and UT", "No Specific Recommendation") -> No Specific Recommendation
I8: Total Cost: | K8: =SUM(K3:K6) -> 2548000
C12: =A3 -> Supv, NetMaint | D12: =A4 -> Supv, NetMaint | G12: =A5 -> Mgr, NetMaint | K12: =A6 -> Mgr, Inst

Sheet MAIN (hidden)
A1: Tech Supervisors | L1: 1511
A2: Make | B2: Model | C2: Drivetrain | D2: Vehicle Type | E2: Configuration | F2: Engine | G2: Vehicle Base Cost | H2: Fuel Type | I2: AFV Upfit Cost | J2: Equipment Upfit Cost | K2: Total Cost/Per Vehicle | L2: Consolidated RJ/RV Total Cost
A3: GM | B3: Express 2500 | D3: Van | F3: 4.8L | G3: 30210 | H3: Hybrid Electric | I3: 8000 | J3: 6800 | K3: =G3+I3+J3 -> 45010 | L3: =K3*$L$1 -> 68010110
A4: Ford | B4: Transit T-250 | D4: Van | F4: 3.7L | G4: 30685 | H4: Hybrid Electric | I4: 8000 | J4: 6800 | K4: =G4+I4+J4 -> 45485 | L4: =K4*$L$1 -> 68727835
A5: Ford | B5: Transit T-250 | D5: Van | F5: 3.7L | G5: 31000 | H5: CNG | I5: 10000 | J5: 6800 | K5: =G5+I5+J5 -> 47800 | L5: =K5*$L$1 -> 72225800
A6: GM | B6: Express 2500 | D6: Van | E6: Bi-Fuel | F6: 6.0L | G6: 31205 | H6: CNG | I6: 10000 | J6: 6800 | K6: =G6+I6+J6 -> 48005 | L6: =K6*$L$1 -> 72535555
A7: GM | B7: Express 2500 | D7: Van | E7: 3-Tank Dedicated | F7: 6.0L | G7: 44995 | H7: CNG | I7: 0 | J7: 6800 | K7: =G7+I7+J7 -> 51795 | L7: =K7*$L$1 -> 78262245
A8: Line Supervisors | L8: 358
A9: Make | B9: Model | C9: Drivetrain | D9: Vehicle Type | E9: Configuration | F9: Engine | G9: Vehicle Base Cost | H9: Fuel Type | I9: Fuel Type Upfit Cost | J9: Equipment Upfit Cost | K9: Total Cost/Per Vehicle | L9: Consolidated RJ/RV Total Cost
A10: Ford | B10: F-150 XL, SuperCab | C10: 4x2 | D10: Pickup | F10: 2.7L | G10: 30655 | H10: Hybrid Electric | I10: 8000 | J10: 1500 | K10: =G10+I10+J10 -> 40155 | L10: =K10*$L$8 -> 14375490
A11: GM | B11: Silverado 1500 WT Double Cab | C11: 4x2 | D11: Pickup | F11: 4.3L | G11: 31390 | H11: Hybrid Electric | I11: 8000 | J11: 1500 | K11: 40890 | L11: 14638620
A12: Ford | B12: F-150 XL, SuperCab | C12: 4x2 | D12: Pickup | F12: 5.0L | G12: 31455 | H12: CNG | I12: 10000 | J12: 1500 | K12: 42955 | L12: 15377890
A13: Ford | B13: F-150 XL, SuperCab | C13: 4x4 | D13: Pickup | F13: 2.7L | G13: 34080 | H13: Hybrid Electric | I13: 8000 | J13: 1500 | K13: 43580 | L13: 15601640
A14: GM | B14: Silverado 1500 WT Double Cab | C14: 4x2 | D14: Pickup | F14: 5.3 DI | G14: 32585 | H14: CNG | I14: 10000 | J14: 1500 | K14: 44085 | L14: 15782430
A15: GM | B15: Silverado 1500 WT Double Cab | C15: 4x4 | D15: Pickup | F15: 4.3L | G15: 35370 | H15: Hybrid Electric | I15: 8000 | J15: 1500 | K15: 44870 | L15: 16063460
A16: Ford | B16: F-150 XL, SuperCab | C16: 4x4 | D16: Pickup | F16: 5.0L | G16: 34880 | H16: CNG | I16: 10000 | J16: 1500 | K16: 46380 | L16: 16604040
A17: GM | B17: Silverado 1500 WT Double Cab | C17: 4x4 | D17: Pickup | F17: 5.3 DI | G17: 36565 | H17: CNG | I17: 10000 | J17: 1500 | K17: 48065 | L17: 17207270
A18: Managers | L18: 61
A19: Make | B19: Model | C19: Drivetrain | D19: Vehicle Type | E19: Configuration | F19: Engine | G19: Vehicle Base Cost | H19: Fuel Type | I19: Fuel Type Upfit Cost | J19: Equipment Upfit Cost | K19: Total Cost/Per Vehicle | L19: Consolidated RJ/RV Total Cost
A20: GM | B20: Equinox L | C20: FWD | D20: SUV | E20: 31.5 Cu Ft, 182HP @ 6700 RPM, 22/32 | F20: 2.4L | G20: 22120 | H20: Gasoline | I20: 0 | J20: 1500 | K20: =G20+I20+J20 -> 23620 | L20: =K20*$L$18 -> 1440820
A21: Subaru | B21: XV Crosstrek 2.0i Premium | C21: AWD | D21: SUV | E21: 22.3 Cu Ft, 148HP @ 6200 RPM, 26/34 | F21: 2.0L | G21: 23295 | H21: Gasoline | I21: 0 | J21: 1500 | K21: 24795 | L21: 1512495
A22: Subaru | B22: XV Crosstrek | C22: AWD | D22: SUV | E22: 21.5 Cu Ft, 160HP @ 6000 RPM, 30/34 | F22: 2.0L | G22: 25995 | H22: Hybrid | I22: 0 | J22: 1500 | K22: 27495 | L22: 1677195
A23: GM | B23: Equinox LS | C23: AWD | D23: SUV | E23: 31.5 Cu Ft, 182HP @ 6700 RPM, 20/29 | F23: 2.4L | G23: 26270 | H23: Gasoline | I23: 0 | J23: 1500 | K23: 27770 | L23: 1693970
A24: Ford | B24: Edge SE | C24: FWD | D24: SUV | E24: 39.2 Cu Ft, 245HP @ 5500 RPM, 20/30 | F24: 2.0L | G24: 28100 | H24: Gasoline | I24: 0 | J24: 1500 | K24: 29600 | L24: 1805600
A25: Ford | B25: Edge SE | C25: AWD | D25: SUV | E25: 39.2 Cu Ft, 245HP @ 5500 RPM, 20/28 | F25: 2.0L | G25: 29595 | H25: Gasoline | I25: 0 | J25: 1500 | K25: 31095 | L25: 1896795

Sheet Vehicle Data (hidden)
A1: Make | B1: Model | C1: Drivetrain | D1: Vehicle Type | E1: Configuration | F1: Engine | G1: Vehicle Base Cost | H1: Fuel Type | I1: Fuel Type Upfit Cost | J1: Equipment Upfit Cost | K1: Total Cost/Per Vehicle
A2: Ford | B2: Edge SE | C2: FWD | D2: SUV | E2: 39.2 Cu Ft, 245HP @ 5500 RPM, 20/30 | F2: 2.0L | G2: 28100 | H2: Gasoline | I2: 0 | J2: 1500 | K2: =G2+I2+Table1418[[#This Row],[Equipment Upfit Cost]] -> 29600
A3: Ford | B3: Edge SE | C3: AWD | D3: SUV | E3: 39.2 Cu Ft, 245HP @ 5500 RPM, 20/28 | F3: 2.0L | G3: 29595 | H3: Gasoline | I3: 0 | J3: 1500 | K3: =G3+I3+Table1418[[#This Row],[Equipment Upfit Cost]] -> 31095
A4: GM | B4: Equinox L | C4: FWD | D4: SUV | E4: 31.5 Cu Ft, 182HP @ 6700 RPM, 22/32 | F4: 2.4L | G4: 22120 | H4: Gasoline | I4: 0 | J4: 1500 | K4: =G4+I4+Table1418[[#This Row],[Equipment Upfit Cost]] -> 23620
A5: GM | B5: Equinox LS | C5: AWD | D5: SUV | E5: 31.5 Cu Ft, 182HP @ 6700 RPM, 20/29 | F5: 2.4L | G5: 26270 | H5: Gasoline | I5: 0 | J5: 1500 | K5: =G5+I5+Table1418[[#This Row],[Equipment Upfit Cost]] -> 27770
A6: GM | B6: Express 2500 | D6: Van | E6: Bi-Fuel | F6: 6.0L | G6: 31205 | H6: CNG | I6: 10000 | J6: 6800 | K6: =G6+I6+Table1418[[#This Row],[Equipment Upfit Cost]] -> 48005
A7: GM | B7: Express 2500 | D7: Van | E7: 3-Tank Dedicated | F7: 6.0L | G7: 44995 | H7: CNG | I7: 0 | J7: 6800 | K7: =G7+I7+Table1418[[#This Row],[Equipment Upfit Cost]] -> 51795
A8: GM | B8: Express 2500 | D8: Van | E8: 4-Tank Dedicated | F8: 6.0L | G8: 46260 | H8: CNG | I8: 0 | J8: 6800 | K8: =G8+I8+Table1418[[#This Row],[Equipment Upfit Cost]] -> 53060
A9: GM | B9: Express 2500 | D9: Van | F9: 4.8L | G9: 30210 | H9: Hybrid Electric | I9: 8000 | J9: 6800 | K9: =G9+I9+Table1418[[#This Row],[Equipment Upfit Cost]] -> 45010
A10: GM | B10: Express 2500 | D10: Van | F10: 6.0L | G10: 31205 | H10: Hybrid Electric | I10: 8000 | J10: 6800 | K10: =G10+I10+Table1418[[#This Row],[Equipment Upfit Cost]] -> 46005
A11: Ford | B11: F-150 XL, Regular Cab | C11: 4x2 | D11: Pickup | F11: 3.5L | G11: 25800 | H11: Hybrid Electric | I11: 8000 | J11: 1500 | K11: =G11+I11+Table1418[[#This Row],[Equipment Upfit Cost]] -> 35300
A12: Ford | B12: F-150 XL, Regular Cab | C12: 4x4 | D12: Pickup | F12: 3.5L | G12: 30445 | H12: Hybrid Electric | I12: 8000 | J12: 1500 | K12: =G12+I12+Table1418[[#This Row],[Equipment Upfit Cost]] -> 39945
A13: Ford | B13: F-150 XL, SuperCab | C13: 4x2 | D13: Pickup | F13: 5.0L | G13: 31455 | H13: CNG | I13: 10000 | J13: 1500 | K13: =G13+I13+Table1418[[#This Row],[Equipment Upfit Cost]] -> 42955
A14: Ford | B14: F-150 XL, SuperCab | C14: 4x4 | D14: Pickup | F14: 5.0L | G14: 34880 | H14: CNG | I14: 10000 | J14: 1500 | K14: =G14+I14+Table1418[[#This Row],[Equipment Upfit Cost]] -> 46380
A15: Ford | B15: F-150 XL, SuperCab | C15: 4x2 | D15: Pickup | F15: 3.5L | G15: 29860 | H15: Hybrid Electric | I15: 8000 | J15: 1500 | K15: =G15+I15+Table1418[[#This Row],[Equipment Upfit Cost]] -> 39360
A16: Ford | B16: F-150 XL, SuperCab | C16: 4x2 | D16: Pickup | F16: 2.7L | G16: 30655 | H16: Hybrid Electric | I16: 8000 | J16: 1500 | K16: =G16+I16+Table1418[[#This Row],[Equipment Upfit Cost]] -> 40155
A17: Ford | B17: F-150 XL, SuperCab | C17: 4x4 | D17: Pickup | F17: 3.5L | G17: 33285 | H17: Hybrid Electric | I17: 8000 | J17: 1500 | K17: =G17+I17+Table1418[[#This Row],[Equipment Upfit Cost]] -> 42785
A18: Ford | B18: F-150 XL, SuperCab | C18: 4x4 | D18: Pickup | F18: 2.7L | G18: 34080 | H18: Hybrid Electric | I18: 8000 | J18: 1500 | K18: =G18+I18+Table1418[[#This Row],[Equipment Upfit Cost]] -> 43580
A19: Ford | B19: F-150 XL, SuperCrew | C19: 4x2 | D19: Pickup | F19: 5.0L | G19: 34225 | H19: CNG | I19: 10000 | J19: 1500 | K19: =G19+I19+Table1418[[#This Row],[Equipment Upfit Cost]] -> 45725
A20: Ford | B20: F-150 XL, SuperCrew | C20: 4x4 | D20: Pickup | F20: 5.0L | G20: 37585 | H20: CNG | I20: 10000 | J20: 1500 | K20: =G20+I20+Table1418[[#This Row],[Equipment Upfit Cost]] -> 49085
A21: Ford | B21: F-150 XL, SuperCrew | C21: 4x2 | D21: Pickup | F21: 2.7L | G21: 33425 | H21: Hybrid Electric | I21: 8000 | J21: 1500 | K21: =G21+I21+Table1418[[#This Row],[Equipment Upfit Cost]] -> 42925
A22: Ford | B22: F-150 XL, SuperCrew | C22: 4x2 | D22: Pickup | F22: 5.0L | G22: 34225 | H22: Hybrid Electric | I22: 8000 | J22: 1500 | K22: =G22+I22+Table1418[[#This Row],[Equipment Upfit Cost]] -> 43725
A23: Ford | B23: F-150 XL, SuperCrew | C23: 4x4 | D23: Pickup | F23: 5.0L | G23: 37585 | H23: Hybrid Electric | I23: 8000 | J23: 1500 | K23: =G23+I23+Table1418[[#This Row],[Equipment Upfit Cost]] -> 47085
A24: GM | B24: Silverado 1500 WT Crew Cab | C24: 4x2 | D24: Pickup | F24: 5.3 DI | G24: 37310 | H24: CNG | I24: 10000 | J24: 1500 | K24: =G24+I24+Table1418[[#This Row],[Equipment Upfit Cost]] -> 48810
A25: GM | B25: Silverado 1500 WT Crew Cab | C25: 4x4 | D25: Pickup | F25: 5.3 DI | G25: 40460 | H25: CNG | I25: 10000 | J25: 1500 | K25: =G25+I25+Table1418[[#This Row],[Equipment Upfit Cost]] -> 51960
A26: GM | B26: Silverado 1500 WT Crew Cab | C26: 4x2 | D26: Pickup | F26: 4.3L | G26: 36115 | H26: Hybrid Electric | I26: 8000 | J26: 1500 | K26: =G26+I26+Table1418[[#This Row],[Equipment Upfit Cost]] -> 45615
A27: GM | B27: Silverado 1500 WT Crew Cab | C27: 4x2 | D27: Pickup | F27: 5.3 DI | G27: 37310 | H27: Hybrid Electric | I27: 8000 | J27: 1500 | K27: =G27+I27+Table1418[[#This Row],[Equipment Upfit Cost]] -> 46810
A28: GM | B28: Silverado 1500 WT Crew Cab | C28: 4x4 | D28: Pickup | F28: 4.3L | G28: 39265 | H28: Hybrid Electric | I28: 8000 | J28: 1500 | K28: =G28+I28+Table1418[[#This Row],[Equipment Upfit Cost]] -> 48765
A29: GM | B29: Silverado 1500 WT Crew Cab | C29: 4x4 | D29: Pickup | F29: 5.3 DI | G29: 40460 | H29: Hybrid Electric | I29: 8000 | J29: 1500 | K29: =G29+I29+Table1418[[#This Row],[Equipment Upfit Cost]] -> 49960
A30: GM | B30: Silverado 1500 WT Double Cab | C30: 4x2 | D30: Pickup | F30: 5.3 DI | G30: 32585 | H30: CNG | I30: 10000 | J30: 1500 | K30: =G30+I30+Table1418[[#This Row],[Equipment Upfit Cost]] -> 44085
A31: GM | B31: Silverado 1500 WT Double Cab | C31: 4x4 | D31: Pickup | F31: 5.3 DI | G31: 36565 | H31: CNG | I31: 10000 | J31: 1500 | K31: =G31+I31+Table1418[[#This Row],[Equipment Upfit Cost]] -> 48065
A32: GM | B32: Silverado 1500 WT Double Cab | C32: 4x2 | D32: Pickup | F32: 4.3L | G32: 31390 | H32: Hybrid Electric | I32: 8000 | J32: 1500 | K32: =G32+I32+Table1418[[#This Row],[Equipment Upfit Cost]] -> 40890
A33: GM | B33: Silverado 1500 WT Double Cab | C33: 4x2 | D33: Pickup | F33: 5.3 DI | G33: 32585 | H33: Hybrid Electric | I33: 8000 | J33: 1500 | K33: =G33+I33+Table1418[[#This Row],[Equipment Upfit Cost]] -> 42085
A34: GM | B34: Silverado 1500 WT Double Cab | C34: 4x4 | D34: Pickup | F34: 4.3L | G34: 35370 | H34: Hybrid Electric | I34: 8000 | J34: 1500 | K34: =G34+I34+Table1418[[#This Row],[Equipment Upfit Cost]] -> 44870
A35: GM | B35: Silverado 1500 WT Double Cab | C35: 4x4 | D35: Pickup | F35: 5.3 DI | G35: 36565 | H35: Hybrid Electric | I35: 8000 | J35: 1500 | K35: =G35+I35+Table1418[[#This Row],[Equipment Upfit Cost]] -> 46065
A36: Ford | B36: Transit Connect XL LWB | D36: Van | F36: 2.5L | G36: 23645 | H36: CNG | I36: 10000 | J36: 6800 | K36: =G36+I36+Table1418[[#This Row],[Equipment Upfit Cost]] -> 40445
A37: Ford | B37: Transit Connect XL LWB | D37: Van | F37: 2.5L | G37: 23330 | H37: Hybrid Electric | I37: 8000 | J37: 6800 | K37: =G37+I37+Table1418[[#This Row],[Equipment Upfit Cost]] -> 38130
A38: Ford | B38: Transit T-250 | D38: Van | F38: 3.7L | G38: 31000 | H38: CNG | I38: 10000 | J38: 6800 | K38: =G38+I38+Table1418[[#This Row],[Equipment Upfit Cost]] -> 47800
A39: Ford | B39: Transit T-250 | D39: Van | F39: 3.7L | G39: 30685 | H39: Hybrid Electric | I39: 8000 | J39: 6800 | K39: =G39+I39+Table1418[[#This Row],[Equipment Upfit Cost]] -> 45485
A40: Subaru | B40: XV Crosstrek | C40: AWD | D40: SUV | E40: 21.5 Cu Ft, 30/34 | F40: 2.0L | G40: 25995 | H40: Hybrid | I40: 0 | J40: 1500 | K40: =G40+I40+Table1418[[#This Row],[Equipment Upfit Cost]] -> 27495
A41: Subaru | B41: XV Crosstrek 2.0i Premium | C41: AWD | D41: SUV | E41: 22.3 Cu Ft, 26/34 | F41: 2.0L | G41: 23295 | H41: Gasoline | I41: 0 | J41: 1500 | K41: =G41+I41+Table1418[[#This Row],[Equipment Upfit Cost]] -> 24795

Sheet Headcount (hidden)
B1: Manager, Installation | C1: Manager, Network Maintenance | D1: Supervisor, Installation | E1: Supervisor, Network Maintenance
A2: MGR1INSTAL
A3: MGR1NETMAINT
A4: MGR2NETMAINT
A5: SUPINSTAL
A6: SUPNETMAINT
A7: Grand Total

Sheet Lists (hidden)
A3: Row Labels | C3: Supv, Inst | F3: Fuel Type | H3: Engine | I3: Vehicle | K3: Make | L3: Model | M3: Drivetrain
A4: CNG | C4: Supv, NetMaint | F4: CNG Dedicated | G4: 13790 | H4: 2.0L | I4: Pickup | K4: Ford | L4: Equinox L | M4: 4x2
A5: Gasoline | C5: Mgr, Inst | F5: CNG Bi-Fuel | G5: 10000 | H5: 2.4L | I5: SUV | K5: GM | L5: Equinox LS | M5: 4x4
A6: Hybrid | C6: Mgr, NetMaint | F6: LPG Dedicated | H6: 2.5L | I6: Van | K6: Subaru | L6: Edge SE | M6: AWD
A7: Hybrid Electric | F7: LPG Bi-Fuel | G7: 6860 | H7: 2.7L | L7: Express 2500 | M7: FWD
A8: Grand Total | F8: None | G8: 0 | H8: 3.5L | I8: F-150 SuperCrew 2WD (AFV Capable) | J8: 34225 | K8: Ford Models | L8: F-150 XL, SuperCab | M8: (blank)
F9: Hybrid Electric | G9: 8000 | H9: 3.7L | I9: F-150 SuperCrew 4WD (AFV Capable) | J9: 37585 | K9: Edge SE | L9: F-150 XL, SuperCrew
F10: None | G10: 0 | H10: 4.3L | I10: F-150 SuperCrew 2WD | J10: 33425 | K10: F-150 XL, SuperCab | L10: Silverado 1500 WT Crew Cab
F11: None | G11: 0 | H11: 4.8L | I11: F-150 SuperCrew 4WD | J11: 37585 | K11: F-150 XL, SuperCrew | L11: Silverado 1500 WT Double Cab
H12: 5.0L | I12: Silverado Crew Cab 2WD (AFV Capable) | J12: 37310 | K12: Transit Connect XL LWB | L12: Silverado 1500 WT Regular Cab
H13: 5.3 DI | I13: Silverado Crew Cab 4WD (AFV Capable) | J13: 40460 | K13: Transit T-250 | L13: Transit Connect XL LWB
H14: 6.0L | I14: Silverado Crew Cab 2WD | J14: 36115 | L14: Transit T-250
I15: Silverado Crew Cab 4WD | J15: 39265 | K15: GM Models | L15: XV Crosstrek
K16: Equinox L | L16: XV Crosstrek 2.0i Premium
K17: Equinox LS
K18: Express 2500
I19: Edge SE AWD | J19: 29595 | K19: Silverado 1500 WT Crew Cab
I20: Edge SE FWD | J20: 28100 | K20: Silverado 1500 WT Double Cab
I21: Equinox LS AWD | J21: 26270 | K21: Silverado 1500 WT Regular Cab
I22: Equinox L FWD | J22: 22120
I23: XV Crosstrek 2.0i Premium AWD | J23: 23295 | K23: Subaru Models
I24: XV Crosstrek Hybrid AWD | J24: 25995 | K24: XV Crosstrek
K25: XV Crosstrek 2.0i Premium
I26: Express 2500 (AFV Capable) | J26: 31205
I27: Express 2500 | J27: 30210
I28: Transit T-250 (AFV Capable) | J28: 31000
I29: Transit T-250 | J29: 30685

Sheet Photos (hidden)
A1: Vehicle Name | B1: Vehicle Photo
A3: Express 2500 (AFV Capable)
A4: Express 2500
A5: Transit T-250 (AFV Capable)
A6: Transit T-250
A7: Transit Connect XL LWB
A8: F-150 XL, Regular Cab
A9: F-150 SuperCrew 2WD (AFV Capable)
A10: F-150 SuperCrew 4WD (AFV Capable)
A11: F-150 SuperCrew 2WD
A12: F-150 SuperCrew 4WD
A13: F-150 XL, SuperCab
A14: Silverado 1500 WT Regular Cab
A15: Silverado Crew Cab 2WD (AFV Capable)
A16: Silverado Crew Cab 4WD (AFV Capable)
A17: Silverado Crew Cab 2WD
A18: Silverado Crew Cab 4WD
A19: Silverado 1500 WT Crew Cab
A20: Edge SE AWD
A21: Edge SE FWD
A22: Equinox LS AWD
A23: Equinox L FWD
A24: XV Crosstrek 2.0i Premium AWD
A25: XV Crosstrek Hybrid AWD

Sheet vData (hidden)
A1: Make Model | B1: Drivetrain | C1: Ladder Rack | D1: Storage | E1: Pax | F1: Upfit | G1: Vehicle Type | H1: Max Towing | I1: Max Payload | K1: Only ones that can tow are pickups
A2: Ford Edge SE | B2: 2WD | C2: No | D2: Medium | E2: 3 | F2: None | G2: SUV | H2: 3500 | I2: 909
A3: Ford Edge SE | B3: AWD | C3: No | D3: Medium | E3: 3 | F3: None | G3: SUV | H3: 3500 | I3: 909
A4: GM Equinox LS | B4: AWD | C4: No | D4: Medium | E4: 3 | F4: None | G4: SUV | H4: 1500 | I4: 1144
A5: GM Equinox L | B5: 2WD | C5: No | D5: Medium | E5: 3 | F5: None | G5: SUV | H5: 1500 | I5: 1183
A6: Ford F-150 XL SuperCrew | B6: 2WD | C6: Yes | D6: Medium | E6: 3 | F6: Utility | G6: Pickup | H6: 7600 | I6: 1600
A7: Ford F-150 XL SuperCrew | B7: 4WD | C7: Yes | D7: Medium | E7: 3 | F7: Utility | G7: Pickup | H7: 7600 | I7: 1600
A8: Ford Transit Connect | B8: 2WD | C8: Yes | D8: Medium | E8: 1 | F8: Tech | G8: Van | H8: 2000 | I8: 1620
A9: GM Silverado 1500 WT Crew Cab | B9: 2WD | C9: Yes | D9: Medium | E9: 3 | F9: Utility | G9: Pickup | H9: 5500 | I9: 1710
A10: GM Silverado 1500 WT Crew Cab | B10: 4WD | C10: Yes | D10: Medium | E10: 3 | F10: Utility | G10: Pickup | H10: 7000 | I10: 1710
A11: GM Express 2500 | B11: 2WD | C11: Yes | D11: Large | E11: 1 | F11: Tech | G11: Van | H11: 9900 | I11: 3309
A12: Ford Transit T-250 | B12: 2WD | C12: Yes | D12: Large | E12: 1 | F12: Tech | G12: Van | H12: 5300 | I12: 4080
A14: if ladder rack yes (and storage medium and large)
A15: Make Model | B15: Drivetrain | C15: Ladder Rack | D15: Storage | E15: Pax | F15: Upfit | G15: Vehicle Type | H15: Max Towing | I15: Max Payload
A16: Ford F-150 XL SuperCrew | B16: 2WD | C16: Yes | D16: Medium | E16: 3 | F16: Utility | G16: Pickup | H16: 7600 | I16: 1600
A17: Ford F-150 XL SuperCrew | B17: 4WD | C17: Yes | D17: Medium | E17: 3 | F17: Utility | G17: Pickup | H17: 7600 | I17: 1600
A18: GM Silverado 1500 WT Crew Cab | B18: 2WD | C18: Yes | D18: Medium | E18: 3 | F18: Utility | G18: Pickup | H18: 5500 | I18: 1710
A19: GM Silverado 1500 WT Crew Cab | B19: 4WD | C19: Yes | D19: Medium | E19: 3 | F19: Utility | G19: Pickup | H19: 7000 | I19: 1710
A20: GM Express 2500 | B20: 2WD | C20: Yes | D20: Large | E20: 1 | F20: Tech | G20: Van | H20: 9900 | I20: 3309
A21: Ford Transit Connect | B21: 2WD | C21: Yes | D21: Medium | E21: 1 | F21: Tech | G21: Van | H21: 2000 | I21: 1620
A22: Ford Transit T-250 | B22: 2WD | C22: Yes | D22: Large | E22: 1 | F22: Tech | G22: Van | H22: 5300 | I22: 4080
A24: if Storage medium
A25: Make Model | B25: Drivetrain | C25: Ladder Rack | D25: Storage | E25: Pax | F25: Upfit | G25: Vehicle Type | H25: Max Towing | I25: Max Payload
A26: Ford F-150 XL SuperCrew | B26: 2WD | C26: Yes | D26: Medium | E26: 3 | F26: Utility | G26: Pickup | H26: 7600 | I26: 1600
A27: Ford F-150 XL SuperCrew | B27: 4WD | C27: Yes | D27: Medium | E27: 3 | F27: Utility | G27: Pickup | H27: 7600 | I27: 1600
A28: GM Silverado 1500 WT Crew Cab | B28: 2WD | C28: Yes | D28: Medium | E28: 3 | F28: Utility | G28: Pickup | H28: 5500 | I28: 1710
A29: GM Express 2500 | B29: 2WD | C29: Yes | D29: Large | E29: 1 | F29: Tech | G29: Van | H29: 9900 | I29: 3309
A30: Ford Transit T-250 | B30: 2WD | C30: Yes | D30: Large | E30: 1 | F30: Tech | G30: Van | H30: 5300 | I30: 4080
A31: GM Silverado 1500 WT Crew Cab | B31: 4WD | C31: Yes | D31: Medium | E31: 3 | F31: Utility | G31: Pickup | H31: 7000 | I31: 1710
A32: Ford Transit Connect | B32: 2WD | C32: Yes | D32: Medium | E32: 1 | F32: Tech | G32: Van | H32: 2000 | I32: 1620
A34: if Storage Small
A35: Make Model | B35: Drivetrain | C35: Ladder Rack | D35: Storage | E35: Pax | F35: Upfit | G35: Vehicle Type | H35: Max Towing | I35: Max Payload
A36: GM Equinox L | B36: 2WD | C36: No | D36: Small | E36: 3 | F36: None | G36: SUV | H36: 1500 | I36: 1183
A37: GM Equinox LS | B37: AWD | C37: No | D37: Small | E37: 3 | F37: None | G37: SUV | H37: 1500 | I37: 1144
A38: Ford Edge SE | B38: 2WD | C38: No | D38: Small | E38: 3 | F38: None | G38: SUV | H38: 3500 | I38: 909
A39: Ford Edge SE | B39: AWD | C39: No | D39: Small | E39: 3 | F39: None | G39: SUV | H39: 3500 | I39: 909
A41: if Storage Large
A42: Make Model | B42: Drivetrain | C42: Ladder Rack | D42: Storage | E42: Pax | F42: Upfit | G42: Vehicle Type | H42: Max Towing | I42: Max Payload
A43: Ford Transit T-250 | B43: 2WD | C43: Yes | D43: Large | E43: 1 | F43: Tech | G43: Van | H43: 5300 | I43: 4080
A44: GM Express 2500 | B44: 2WD | C44: Yes | D44: Large | E44: 1 | F44: Tech | G44: Van | H44: 9900 | I44: 3309
A46: Make Model | B46: Drivetrain | C46: Ladder Rack | D46: Storage | E46: Pax | F46: Upfit | G46: Vehicle Type | H46: Max Towing | I46: Max Payload
A47: Ford Transit T-250 | B47: 2WD | C47: Yes | D47: Large | E47: 1 | F47: Tech | G47: Van | H47: 5300 | I47: 4080
A48: GM Express 2500 | B48: 2WD | C48: Yes | D48: Large | E48: 1 | F48: Tech | G48: Van | H48: 9900 | I48: 3309
A50: Make Model | B50: Drivetrain | C50: Ladder Rack | D50: Storage | E50: Pax | F50: Upfit | G50: Vehicle Type | H50: Max Towing | I50: Max Payload
A51: GM Silverado 1500 WT Crew Cab | B51: 2WD | C51: Yes | D51: Medium | E51: 3 | F51: Utility | G51: Pickup | H51: 5500 | I51: 1710
A52: GM Silverado 1500 WT Crew Cab | B52: 4WD | C52: Yes | D52: Medium | E52: 3 | F52: Utility | G52: Pickup | H52: 7000 | I52: 1710
A53: Ford F-150 XL SuperCrew | B53: 2WD | C53: Yes | D53: Medium | E53: 3 | F53: Utility | G53: Pickup | H53: 7600 | I53: 1600
A54: Ford F-150 XL SuperCrew | B54: 4WD | C54: Yes | D54: Medium | E54: 3 | F54: Utility | G54: Pickup | H54: 7600 | I54: 1600
A56: If yes for Tow
A57: Make Model | B57: Drivetrain | C57: Ladder Rack | D57: Storage | E57: Pax | F57: Upfit | G57: Vehicle Type | H57: Max Towing | I57: Max Payload
A58: GM Silverado 1500 WT Crew Cab | B58: 2WD | C58: Yes | D58: Medium | E58: 3 | F58: Utility | G58: Pickup | H58: 5500 | I58: 1710
A59: GM Silverado 1500 WT Crew Cab | B59: 4WD | C59: Yes | D59: Medium | E59: 3 | F59: Utility | G59: Pickup | H59: 7000 | I59: 1710
A60: Ford F-150 XL SuperCrew | B60: 2WD | C60: Yes | D60: Medium | E60: 3 | F60: Utility | G60: Pickup | H60: 7600 | I60: 1600
A61: Ford F-150 XL SuperCrew | B61: 4WD | C61: Yes | D61: Medium | E61: 3 | F61: Utility | G61: Pickup | H61: 7600 | I61: 1600
A63: if more than 1 PAX
A64: Make Model | B64: Drivetrain | C64: Ladder Rack | D64: Storage | E64: Pax | F64: Upfit | G64: Vehicle Type | H64: Max Towing | I64: Max Payload
A65: GM Equinox L | B65: 2WD | C65: No | D65: Small | E65: 3 | F65: None | G65: SUV | H65: 1500 | I65: 1183
A66: GM Equinox LS | B66: AWD | C66: No | D66: Small | E66: 3 | F66: None | G66: SUV | H66: 1500 | I66: 1144
A67: Ford Edge SE | B67: 2WD | C67: No | D67: Small | E67: 3 | F67: None | G67: SUV | H67: 3500 | I67: 909
A68: Ford Edge SE | B68: AWD | C68: No | D68: Small | E68: 3 | F68: None | G68: SUV | H68: 3500 | I68: 909
A69: GM Silverado 1500 WT Crew Cab | B69: 2WD | C69: Yes | D69: Medium | E69: 3 | F69: Utility | G69: Pickup | H69: 5500 | I69: 1710
A70: GM Silverado 1500 WT Crew Cab | B70: 4WD | C70: Yes | D70: Medium | E70: 3 | F70: Utility | G70: Pickup | H70: 7000 | I70: 1710
A71: Ford F-150 XL SuperCrew | B71: 2WD | C71: Yes | D71: Medium | E71: 3 | F71: Utility | G71: Pickup | H71: 7600 | I71: 1600
A72: Ford F-150 XL SuperCrew | B72: 4WD | C72: Yes | D72: Medium | E72: 3 | F72: Utility | G72: Pickup | H72: 7600 | I72: 1600

Sheet vData (2) (hidden)
A1: Make | B1: Model | C1: Drivetrain | D1: Ladder Rack | E1: Storage | F1: Pax | G1: Upfit | H1: Vehicle Type | I1: Max Towing | J1: Max Payload
A2: Ford | B2: F-150 XL, SuperCrew | C2: 2WD | D2: Yes | E2: Medium | F2: 3 | G2: Utility | H2: Pickup | I2: 7600 | J2: 1600
A3: Ford | B3: F-150 XL, SuperCrew | C3: 4WD | D3: Yes | E3: Medium | F3: 3 | G3: Utility | H3: Pickup | I3: 7600 | J3: 1600
A4: GM | B4: Silverado 1500 WT Crew Cab | C4: 2WD | D4: Yes | E4: Medium | F4: 3 | G4: Utility | H4: Pickup | I4: 5500 | J4: 1710
A5: GM | B5: Silverado 1500 WT Crew Cab | C5: 4WD | D5: Yes | E5: Medium | F5: 3 | G5: Utility | H5: Pickup | I5: 7000 | J5: 1710
A6: Ford | B6: Edge SE | C6: 2WD | D6: No | E6: Small | F6: 3 | G6: None | H6: SUV | I6: 3500 | J6: 909
A7: Ford | B7: Edge SE | C7: AWD | D7: No | E7: Small | F7: 3 | G7: None | H7: SUV | I7: 3500 | J7: 909
A8: GM | B8: Equinox L | C8: 2WD | D8: No | E8: Small | F8: 3 | G8: None | H8: SUV | I8: 1500 | J8: 1183
A9: GM | B9: Equinox LS | C9: AWD | D9: No | E9: Small | F9: 3 | G9: None | H9: SUV | I9: 1500 | J9: 1144
A10: GM | B10: Express 2500 | C10: 2WD | D10: Yes | E10: Large | F10: 1 | G10: Tech | H10: Van | I10: 9900 | J10: 3309
A11: Ford | B11: Transit Connect | C11: 2WD | D11: Yes | E11: Medium | F11: 1 | G11: Tech | H11: Van | I11: 2000 | J11: 1620
A12: Ford | B12: Transit T-250 | C12: 2WD | D12: Yes | E12: Large | F12: 1 | G12: Tech | H12: Van | I12: 5300 | J12: 4080
A15: If ladder rack no
A16: Make | B16: Model | C16: Drivetrain | D16: Ladder Rack | E16: Storage | F16: Pax | G16: Upfit | H16: Vehicle Type | I16: Max Towing | J16: Max Payload
A17: Ford | B17: F-150 XL, SuperCrew | C17: 2WD | D17: Yes | E17: Medium | F17: 3 | G17: Utility | H17: Pickup | I17: 7600 | J17: 1600
A18: Ford | B18: F-150 XL, SuperCrew | C18: 4WD | D18: Yes | E18: Medium | F18: 3 | G18: Utility | H18: Pickup | I18: 7600 | J18: 1600
A19: GM | B19: Silverado 1500 WT Crew Cab | C19: 2WD | D19: Yes | E19: Medium | F19: 3 | G19: Utility | H19: Pickup | I19: 5500 | J19: 1710
A20: GM | B20: Silverado 1500 WT Crew Cab | C20: 4WD | D20: Yes | E20: Medium | F20: 3 | G20: Utility | H20: Pickup | I20: 7000 | J20: 1710
A21: Ford | B21: Edge SE | C21: 2WD | D21: No | E21: Small | F21: 3 | G21: None | H21: SUV | I21: 3500 | J21: 909
A22: Ford | B22: Edge SE | C22: AWD | D22: No | E22: Small | F22: 3 | G22: None | H22: SUV | I22: 3500 | J22: 909
A23: GM | B23: Equinox L | C23: 2WD | D23: No | E23: Small | F23: 3 | G23: None | H23: SUV | I23: 1500 | J23: 1183
A24: GM | B24: Equinox LS | C24: AWD | D24: No | E24: Small | F24: 3 | G24: None | H24: SUV | I24: 1500 | J24: 1144
A25: GM | B25: Express 2500 | C25: 2WD | D25: Yes | E25: Large | F25: 1 | G25: Tech | H25: Van | I25: 9900 | J25: 3309
A26: Ford | B26: Transit Connect | C26: 2WD | D26: Yes | E26: Medium | F26: 1 | G26: Tech | H26: Van | I26: 2000 | J26: 1620
A27: Ford | B27: Transit T-250 | C27: 2WD | D27: Yes | E27: Large | F27: 1 | G27: Tech | H27: Van | I27: 5300 | J27: 4080

Sheet Lists (Hide) (hidden)
A1: yesNO
A2: Yes | C2: Vehicle Type Recommendation | D2: nWeight | E2: xWeight | F2: Haul/Tow | G2: Pax | H2: Ladder
A3: Pax | C3: Full Size SUV | D3: 0 | E3: 700 | F3: 1500 | G3: 3 | H3: Yes
A4: 1 | C4: Full Size Van | D4: 701 | E4: 1500 | F4: 2500 | G4: 1 | H4: Yes
A5: 2 | C5: Pickup Truck | D5: 1501 | E5: 3000 | F5: 3000 | G5: 3 | H5: Yes
C6: Exceed Max Weight Limit | D6: 3001 | E6: 6001 | F6: 5000 | G6: 1 | H6: Yes
C8: Vehicle Type Recommendation | D8: nWeight | E8: xWeight | F8: Haul/Tow | G8: Pax | H8: Ladder
C9: Full Size SUV | D9: 0 | E9: 700 | F9: 1500 | G9: 3 | H9: Yes
C10: Full Size Van | D10: 1201 | E10: 1500 | F10: 2500 | G10: 1 | H10: Yes
C11: Pickup Truck | D11: 1501 | E11: 3000 | F11: 3000 | G11: 3 | H11: Yes
C12: Exceed Max Weight Limit | D12: 3001 | E12: 6001 | F12: 5000 | G12: 1 | H12: Yes
C14: Vehicle Type Recommendation | D14: nWeight | E14: xWeight | F14: Haul/Tow | G14: Pax | H14: Ladder
C15: Full Size SUV | D15: 0 | E15: 700 | F15: 1500 | G15: 3 | H15: Yes
C16: Pickup Truck | D16: 701 | E16: 3000 | F16: 3000 | G16: 3 | H16: Yes
C17: Exceed Max Weight Limit | D17: 3001 | E17: 6001 | F17: 5000 | G17: 3 | H17: Yes
C19: Vehicle Type Recommendation | D19: nWeight | E19: xWeight | F19: Haul/Tow | G19: Pax | H19: Ladder
C20: Full Size SUV | D20: 0 | E20: 700 | F20: 1500 | G20: 3 | H20: Yes
C21: Pickup Truck | D21: 701 | E21: 3000 | F21: 3000 | G21: 3 | H21: Yes
C22: Exceed Max Weight Limit | D22: 3001 | E22: 6001 | F22: 5000 | G22: 3 | H22: Yes
C24: Alternative Fuels | D24: Home Garaged | E24: Avg Miles Per Day | F24: % of City Miles | G24: Invest in Private Infrastructure | H24: Local Infrastructure Available | I24: Emissions
C25: Biodiesel (B20)
C26: Ethanol (E85)
C27: Hydrogen Fuel Cell
C28: CNG - Dedicated
C29: CNG - Bi-fuel
C30: LPG - Dedicated
C31: LPG - Bi-fuel
C32: Electric
C33: Plug-in Hybrid Electric
C34: Hybrid Electric
C35: Gasoline
